fUSD/lending_fUSD_20240708
["ID","MTS","AMOUNT","RATE_DAILY","PERIOD"]
[331465926,1720427795731,-2451.08,0.00034099,37]
[331465927,1720427795778,-500.0,0.00034099,38]
[331465928,1720427795828,-536.5,0.00034099,33]
[331465929,1720427795876,-618.01,0.00034099,50]
[331465930,1720427795928,-2451.08,0.00034099,38]
[331465931,1720427795976,-536.5,0.00034099,34]
[331465932,1720427796027,-2451.08,0.00034099,39]
[331465933,1720427796081,-618.01,0.00034099,51]
[331465934,1720427796132,-201.51944959,0.00034099,39]
[331465935,1720427796181,-536.5,0.00034099,35]
[331465936,1720427796232,-2451.08,0.00034099,40]
[331465937,1720427796279,-618.01,0.00034099,52]
[331465938,1720427796326,-536.5,0.00034099,36]
[331465939,1720427796374,-618.16984244,0.00034099,53]
[331465940,1720427796426,-2451.08,0.00034099,41]
[331465941,1720427796477,-536.5,0.00034099,37]
[331465942,1720427796530,-2451.08,0.00034099,42]
[331465943,1720427796582,-536.5,0.00034099,38]
[331465944,1720427796634,-2451.08,0.00034099,43]
[331465945,1720427796683,-2451.08,0.00034099,44]
[331465946,1720427796732,-536.5,0.00034099,39]
[331465947,1720427796780,-2451.08,0.00034099,45]
[331465948,1720427796829,-2451.08,0.00034099,46]
[331465949,1720427796878,-536.5,0.00034099,40]
[331465950,1720427796928,-2451.08,0.00034099,47]
[331465951,1720427796980,-536.5,0.00034099,41]
[331465952,1720427797025,-2451.08,0.00034099,48]
[331465953,1720427797076,-500.0,0.00034099,30]
[331465954,1720427797126,-2451.08,0.00034099,49]
[331465955,1720427797175,-500.0,0.00034099,31]
[331465956,1720427797223,-2451.08,0.00034099,50]
[331465957,1720427797270,-536.5,0.00034099,42]
[331465958,1720427797315,-500.0,0.00034099,32]
[331465959,1720427797362,-2451.08,0.00034099,51]
[331465960,1720427797410,-536.5,0.00034099,43]
[331465961,1720427797454,-500.0,0.00034099,33]
[331465962,1720427797500,-536.5,0.00034099,44]
[331465963,1720427797546,-500.0,0.00034099,34]
[331465964,1720427797594,-536.5,0.00034099,45]
[331465965,1720427797641,-2451.08,0.00034099,52]
[331465966,1720427797690,-500.0,0.00034099,35]
[331465967,1720427797740,-2451.16409854,0.00034099,53]
[331465968,1720427797788,-536.5,0.00034099,46]
[331465969,1720427797836,-788.58,0.00034099,30]
[331465970,1720427797888,-556.22,0.00034099,30]
[331465971,1720427797939,-536.5,0.00034099,47]
[331465972,1720427797989,-788.58,0.00034099,31]
[331465973,1720427798040,-426.81443482,0.00034099,36]
[331465974,1720427798090,-204.52921088,0.00034099,30]
[331465975,1720427798142,-556.22,0.00034099,31]
[331465976,1720427798192,-536.5,0.00034099,48]
[331465977,1720427798242,-788.58,0.00034099,32]
[331465978,1720427798290,-4940.05,0.00034099,30]
[331465979,1720427798341,-556.22,0.00034099,32]
[331465980,1720427798389,-536.5,0.00034099,49]
[331465981,1720427798434,-788.58,0.00034099,33]
[331465982,1720427798481,-588.46,0.00034099,30]
[331465983,1720427798527,-4940.05,0.00034099,31]
[331465984,1720427798574,-510.55508225,0.00034099,30]
[331465985,1720427798621,-788.58,0.00034099,34]
[331465986,1720427798667,-588.46,0.00034099,31]
[331465987,1720427798716,-536.5,0.00034099,50]
[331465988,1720427798758,-4940.05,0.00034099,32]
[331465989,1720427798803,-556.22,0.00034099,33]
[331465990,1720427798852,-588.46,0.00034099,32]
[331465991,1720427798901,-788.58,0.00034099,35]
[331465992,1720427798952,-4940.05,0.00034099,33]
[331465993,1720427799007,-536.5,0.00034099,51]
[331465994,1720427799064,-556.22,0.00034099,34]
[331465995,1720427799133,-588.46,0.00034099,33]
[331465996,1720427799188,-788.58,0.00034099,36]
[331465997,1720427799557,-536.5,0.00034099,52]
[331465998,1720427799612,-4940.05,0.00034099,34]
[331465999,1720427799665,-556.22,0.00034099,35]
[331466000,1720427799721,-588.46,0.00034099,34]
[331466001,1720427799772,-788.58,0.00034099,37]
[331466002,1720427799823,-536.6494832,0.00034099,53]
[331466003,1720427799884,-4940.05,0.00034099,35]
[331466004,1720427799933,-588.46,0.00034099,35]
[331466005,1720427799982,-556.22,0.00034099,36]
[331466006,1720427800033,-4940.05,0.00034099,36]
[331466007,1720427800092,-788.58,0.00034099,38]
[331466009,1720427800142,-556.22,0.00034099,37]
[331466010,1720427800195,-4940.05,0.00034099,37]
[331466011,1720427800246,-788.58,0.00034099,39]
[331466012,1720427800297,-556.22,0.00034099,38]
[331466013,1720427800346,-588.46,0.00034099,36]
[331466014,1720427800397,-4940.05,0.00034099,38]
[331466015,1720427800447,-788.58,0.00034099,40]
[331466016,1720427800498,-588.46,0.00034099,37]
[331466017,1720427800544,-556.22,0.00034099,39]
[331466018,1720427800592,-500.0,0.00034099,30]
[331466019,1720427800639,-4940.05,0.00034099,39]
[331466020,1720427800691,-588.46,0.00034099,38]
[331466021,1720427800744,-556.22,0.00034099,40]
[331466022,1720427800793,-500.0,0.00034099,31]
[331466023,1720427800846,-788.58,0.00034099,41]
[331466024,1720427800899,-4940.05,0.00034099,40]
[331466025,1720427800955,-588.46,0.00034099,39]
[331466026,1720427801006,-500.0,0.00034099,32]
[331466027,1720427801058,-556.22,0.00034099,41]
[331466028,1720427801108,-788.58,0.00034099,42]
[331466029,1720427801160,-4940.05,0.00034099,41]
[331466030,1720427801211,-588.46,0.00034099,40]
[331466031,1720427801262,-500.0,0.00034099,33]
[331466032,1720427801314,-556.22,0.00034099,42]
[331466033,1720427801370,-788.58,0.00034099,43]
[331466034,1720427801425,-4940.05,0.00034099,42]
[331466035,1720427801475,-500.0,0.00034099,34]
[331466036,1720427801527,-588.46,0.00034099,41]
[331466037,1720427801588,-556.22,0.00034099,43]
[331466038,1720427801640,-788.58,0.00034099,44]
[331466039,1720427801688,-4940.05,0.00034099,43]
[331466040,1720427801741,-556.22,0.00034099,44]
[331466041,1720427801792,-500.0,0.00034099,35]
[331466042,1720427801845,-588.46,0.00034099,42]
[331466043,1720427801899,-725.12,0.00034099,30]
[331466044,1720427801950,-788.58,0.00034099,45]
[331466045,1720427802004,-4940.05,0.00034099,44]
[331466046,1720427802053,-556.22,0.00034099,45]
[331466047,1720427802104,-588.46,0.00034099,43]
[331466048,1720427802156,-500.0,0.00034099,36]
[331466049,1720427802208,-725.12,0.00034099,31]
[331466050,1720427802261,-788.58,0.00034099,46]
[331466051,1720427802314,-4940.05,0.00034099,45]
[331466052,1720427802367,-524.10287793,0.00034099,37]
[331466053,1720427802414,-588.46,0.00034099,44]
[331466054,1720427802468,-788.58,0.00034099,47]
[331466055,1720427802518,-725.12,0.00034099,32]
[331466056,1720427802573,-4940.05,0.00034099,46]
[331466057,1720427802627,-588.46,0.00034099,45]
[331466058,1720427802678,-556.22,0.00034099,46]
[331466059,1720427802727,-788.58,0.00034099,48]
[331466060,1720427802775,-725.12,0.00034099,33]
[331466061,1720427802826,-4940.05,0.00034099,47]
[331466062,1720427802876,-588.46,0.00034099,46]
[331466063,1720427802933,-788.58,0.00034099,49]
[331466064,1720427802984,-556.22,0.00034099,47]
[331466065,1720427803035,-725.12,0.00034099,34]
[331466066,1720427803089,-4940.05,0.00034099,48]
[331466067,1720427803147,-588.46,0.00034099,47]
[331466068,1720427803203,-788.58,0.00034099,50]
[331466069,1720427803367,-556.22,0.00034099,48]
[331466070,1720427803416,-588.46,0.00034099,48]
[331466071,1720427803460,-788.58,0.00034099,51]
[331466072,1720427803508,-556.22,0.00034099,49]
[331466073,1720427803557,-588.46,0.00034099,49]
[331466074,1720427803607,-4940.05,0.00034099,49]
[331466075,1720427803655,-788.58,0.00034099,52]
[331466076,1720427803701,-588.46,0.00034099,50]
[331466077,1720427803748,-556.22,0.00034099,50]
[331466078,1720427803791,-4940.05,0.00034099,50]
[331466079,1720427803839,-788.72402158,0.00034099,53]
[331466080,1720427803891,-556.22,0.00034099,51]
[331466081,1720427803940,-588.46,0.00034099,51]
[331466082,1720427804006,-4940.05,0.00034099,51]
[331466083,1720427804057,-588.46,0.00034099,52]
[331466084,1720427804108,-556.22,0.00034099,52]
[331466085,1720427804159,-4940.05,0.00034099,52]
[331466086,1720427804208,-588.52826302,0.00034099,53]
[331466087,1720427804260,-556.356,0.00034099,53]
[331466088,1720427804316,-4940.06884431,0.00034099,53]
[331466089,1720427804367,-500.0,0.00034099,30]
[331466090,1720427804415,-507.65004146,0.00034099,31]
[331466091,1720427804465,-725.12,0.00034099,35]
[331466092,1720427804511,-725.12,0.00034099,36]
[331466093,1720427804558,-500.0,0.00034099,30]
[331466094,1720427804607,-725.12,0.00034099,37]
[331466095,1720427804654,-500.0,0.00034099,31]
[331466096,1720427804703,-725.12,0.00034099,38]
[331466097,1720427804751,-500.0,0.00034099,32]
[331466098,1720427804798,-725.12,0.00034099,39]
[331466099,1720427804847,-500.0,0.00034099,33]
[331466100,1720427804892,-725.12,0.00034099,40]
[331466101,1720427804945,-2500.59,0.00034099,30]
[331466102,1720427804995,-500.0,0.00034099,30]
[331466103,1720427805045,-500.0,0.00034099,34]
[331466104,1720427805096,-2500.59,0.00034099,31]
[331466105,1720427805148,-1169.96,0.00034099,30]
[331466106,1720427805200,-725.12,0.00034099,41]
[331466107,1720427805251,-502.57505399,0.00034099,31]
[331466108,1720427805297,-500.0,0.00034099,35]
[331466109,1720427805342,-2500.59,0.00034099,32]
[331466110,1720427805388,-1169.96,0.00034099,31]
[331466111,1720427805443,-725.12,0.00034099,42]
[331466112,1720427805492,-500.0,0.00034099,30]
[331466113,1720427805542,-500.0,0.00034099,36]
[331466114,1720427805593,-2500.59,0.00034099,33]
[331466115,1720427805642,-1169.96,0.00034099,32]
[331466116,1720427805693,-725.12,0.00034099,43]
[331466117,1720427805738,-500.0,0.00034099,31]
[331466118,1720427805784,-500.0,0.00034099,30]
[331466119,1720427805832,-500.0,0.00034099,37]
[331466120,1720427805887,-2500.59,0.00034099,34]
[331466121,1720427805939,-725.12,0.00034099,44]
[331466122,1720427805988,-1169.96,0.00034099,33]
[331466123,1720427806036,-500.0,0.00034099,32]
[331466124,1720427806085,-500.0,0.00034099,38]
[331466125,1720427806135,-2500.59,0.00034099,35]
[331466126,1720427806186,-725.12,0.00034099,45]
[331466127,1720427806235,-483.11360797,0.00034099,31]
[331466128,1720427806283,-500.0,0.00034099,33]
[331466129,1720427806339,-500.0,0.00034099,39]
[331466130,1720427806397,-2500.59,0.00034099,36]
[331466131,1720427806444,-725.12,0.00034099,46]
[331466132,1720427806495,-1169.96,0.00034099,34]
[331466133,1720427806544,-400.55828714,0.00034099,30]
[331466134,1720427806594,-500.0,0.00034099,34]
[331466135,1720427806640,-500.0,0.00034099,40]
[331466136,1720427806688,-2500.59,0.00034099,37]
[331466137,1720427806735,-1169.96,0.00034099,35]
[331466138,1720427806783,-500.0,0.00034099,30]
[331466139,1720427806835,-500.0,0.00034099,35]
[331466140,1720427806885,-500.0,0.00034099,41]
[331466141,1720427806940,-2500.59,0.00034099,38]
[331466142,1720427806989,-500.0,0.00034099,31]
[331466143,1720427807037,-1169.96,0.00034099,36]
[331466144,1720427807087,-500.0,0.00034099,36]
[331466145,1720427807134,-2500.59,0.00034099,39]
[331466146,1720427807179,-725.12,0.00034099,47]
[331466147,1720427807227,-500.0,0.00034099,32]
[331466148,1720427807275,-500.0,0.00034099,37]
[331466149,1720427807325,-500.0,0.00034099,42]
[331466150,1720427807379,-2500.59,0.00034099,40]
[331466151,1720427807428,-725.12,0.00034099,48]
[331466152,1720427807474,-500.0,0.00034099,30]
[331466153,1720427807519,-1169.96,0.00034099,37]
[331466154,1720427807571,-500.0,0.00034099,38]
[331466155,1720427807625,-2500.59,0.00034099,41]
[331466156,1720427807672,-500.0,0.00034099,43]
[331466157,1720427807718,-725.12,0.00034099,49]
[331466158,1720427807762,-500.0,0.00034099,31]
[331466159,1720427807807,-500.0,0.00034099,39]
[331466160,1720427807855,-500.0,0.00034099,33]
[331466161,1720427807902,-1169.96,0.00034099,38]
[331466162,1720427807951,-2500.59,0.00034099,42]
[331466163,1720427807999,-725.12,0.00034099,50]
[331466164,1720427808048,-500.0,0.00034099,44]
[331466165,1720427808099,-500.0,0.00034099,32]
[331466166,1720427808149,-500.0,0.00034099,40]
[331466167,1720427808197,-500.0,0.00034099,34]
[331466168,1720427808244,-1169.96,0.00034099,39]
[331466169,1720427808291,-2500.59,0.00034099,43]
[331466170,1720427808342,-209.77259435,0.00034099,45]
[331466171,1720427808396,-725.12,0.00034099,51]
[331466172,1720427808447,-500.0,0.00034099,33]
[331466173,1720427808690,-500.0,0.00034099,35]
[331466174,1720427808741,-500.0,0.00034099,41]
[331466175,1720427808791,-1169.96,0.00034099,40]
[331466176,1720427808840,-2500.59,0.00034099,44]
[331466177,1720427808887,-725.12,0.00034099,52]
[331466178,1720427808939,-500.0,0.00034099,34]
[331466179,1720427808988,-500.0,0.00034099,42]
[331466180,1720427809037,-500.0,0.00034099,36]
[331466181,1720427809088,-2500.59,0.00034099,45]
[331466182,1720427809139,-725.24262762,0.00034099,53]
[331466183,1720427809186,-500.0,0.00034099,35]
[331466184,1720427809233,-500.0,0.00034099,43]
[331466185,1720427809282,-500.0,0.00034099,37]
[331466186,1720427809334,-1169.96,0.00034099,41]
[331466187,1720427809382,-2500.59,0.00034099,46]
[331466188,1720427809434,-500.0,0.00034099,36]
[331466189,1720427809484,-500.0,0.00034099,38]
[331466190,1720427809533,-1169.96,0.00034099,42]
[331466191,1720427809579,-2500.59,0.00034099,47]
[331466192,1720427809629,-500.0,0.00034099,37]
[331466193,1720427809675,-500.0,0.00034099,39]
[331466194,1720427809716,-2500.59,0.00034099,48]
[331466195,1720427809759,-1169.96,0.00034099,43]
[331466196,1720427809804,-500.0,0.00034099,38]
[331466197,1720427809848,-500.0,0.00034099,40]
[331466198,1720427809896,-2500.59,0.00034099,49]
[331466199,1720427809942,-1169.96,0.00034099,44]
[331466200,1720427809987,-500.0,0.00034099,39]
[331466201,1720427810034,-500.0,0.00034099,41]
[331466202,1720427810078,-2500.59,0.00034099,50]
[331466203,1720427810126,-500.0,0.00034099,40]
[331466204,1720427810170,-1169.96,0.00034099,45]
[331466205,1720427810215,-500.0,0.00034099,42]
[331466206,1720427810261,-1169.96,0.00034099,46]
[331466207,1720427810306,-2500.59,0.00034099,51]
[331466208,1720427810350,-500.0,0.00034099,43]
[331466209,1720427810398,-1169.96,0.00034099,47]
[331466210,1720427810439,-500.0,0.00034099,41]
[331466211,1720427810485,-500.0,0.00034099,44]
[331466212,1720427810532,-2500.59,0.00034099,52]
[331466213,1720427810579,-1169.96,0.00034099,48]
[331466214,1720427810627,-500.0,0.00034099,42]
[331466215,1720427810672,-500.0,0.00034099,45]
[331466216,1720427810722,-2500.67,0.00034099,53]
[331466217,1720427810771,-1169.96,0.00034099,49]
[331466218,1720427810820,-500.0,0.00034099,43]
[331466219,1720427810873,-500.0,0.00034099,46]
[331466220,1720427810923,-1169.96,0.00034099,50]
[331466221,1720427810977,-515.78,0.00034099,44]
[331466222,1720427811028,-500.0,0.00034099,47]
[331466223,1720427811080,-1169.96,0.00034099,51]
[331466224,1720427811136,-500.0,0.00034099,48]
[331466225,1720427811188,-1169.96,0.00034099,52]
[331466226,1720427811240,-1170.15497686,0.00034099,53]
[331466227,1720427811290,-500.0,0.00034099,49]
[331466228,1720427811341,-164.08325464,0.00034099,50]
[331466229,1720427811391,-500.0,0.00034099,30]
[331466230,1720427811440,-902.03,0.00034099,30]
[331466231,1720427811488,-500.0,0.00034099,31]
[331466232,1720427811531,-902.03,0.00034099,31]
[331466233,1720427811578,-500.0,0.00034099,32]
[331466234,1720427811627,-902.03,0.00034099,32]
[331466235,1720427811676,-500.0,0.00034099,33]
[331466236,1720427811723,-500.0,0.00034099,34]
[331466237,1720427811772,-902.03,0.00034099,33]
[331466238,1720427811823,-902.03,0.00034099,34]
[331466239,1720427811874,-500.0,0.00034099,35]
[331466240,1720427811933,-1514.52,0.00034099,30]
[331466241,1720427811983,-500.0,0.00034099,36]
[331466242,1720427812032,-1514.52,0.00034099,31]
[331466243,1720427812079,-297.9071769,0.00034099,30]
[331466244,1720427812130,-902.03,0.00034099,35]
[331466245,1720427812178,-500.0,0.00034099,37]
[331466246,1720427812225,-1514.52,0.00034099,32]
[331466247,1720427812274,-500.0,0.00034099,30]
[331466248,1720427812323,-902.03,0.00034099,36]
[331466249,1720427812376,-500.0,0.00034099,38]
[331466250,1720427812424,-1514.52,0.00034099,33]
[331466251,1720427812472,-902.03,0.00034099,37]
[331466252,1720427812521,-500.0,0.00034099,39]
[331466253,1720427812569,-1514.52,0.00034099,34]
[331466254,1720427812620,-500.0,0.00034099,31]
[331466255,1720427812668,-658.89,0.00034099,30]
[331466256,1720427812715,-902.03,0.00034099,38]
[331466257,1720427812762,-1514.52,0.00034099,35]
[331466258,1720427812809,-500.0,0.00034099,32]
[331466259,1720427812864,-658.89,0.00034099,31]
[331466260,1720427812910,-506.39699227,0.00034099,30]
[331466261,1720427813244,-500.0,0.00034099,40]
[331466262,1720427813320,-1514.52,0.00034099,36]
[331466263,1720427813375,-902.03,0.00034099,39]
[331466264,1720427813428,-500.0,0.00034099,33]
[331466265,1720427813481,-357.92220848,0.00034099,41]
[331466266,1720427813531,-902.03,0.00034099,40]
[331466267,1720427813580,-658.89,0.00034099,32]
[331466268,1720427813632,-1514.52,0.00034099,37]
[331466269,1720427813680,-902.03,0.00034099,41]
[331466270,1720427813730,-500.0,0.00034099,34]
[331466271,1720427813779,-1514.52,0.00034099,38]
[331466272,1720427813829,-658.89,0.00034099,33]
[331466273,1720427813883,-1514.52,0.00034099,39]
[331466274,1720427813935,-658.89,0.00034099,34]
[331466275,1720427813985,-902.03,0.00034099,42]
[331466276,1720427814033,-658.89,0.00034099,35]
[331466277,1720427814086,-500.0,0.00034099,35]
[331466278,1720427814137,-500.0,0.00034099,30]
[331466279,1720427814191,-1514.52,0.00034099,40]
[331466280,1720427814245,-902.03,0.00034099,43]
[331466281,1720427814297,-500.0,0.00034099,36]
[331466282,1720427814350,-658.89,0.00034099,36]
[331466283,1720427814399,-500.0,0.00034099,31]
[331466284,1720427814452,-1514.52,0.00034099,41]
[331466285,1720427814505,-500.0,0.00034099,37]
[331466286,1720427814559,-902.03,0.00034099,44]
[331466287,1720427814611,-658.89,0.00034099,37]
[331466288,1720427814660,-1514.52,0.00034099,42]
[331466289,1720427814716,-500.0,0.00034099,32]
[331466290,1720427814763,-500.0,0.00034099,38]
[331466291,1720427814812,-902.03,0.00034099,45]
[331466292,1720427814864,-658.89,0.00034099,38]
[331466293,1720427814919,-1514.52,0.00034099,43]
[331466294,1720427814975,-500.0,0.00034099,33]
[331466295,1720427815029,-902.03,0.00034099,46]
[331466296,1720427815082,-885.43,0.00034099,30]
[331466297,1720427815137,-658.89,0.00034099,39]
[331466298,1720427815186,-586.55979883,0.00034099,39]
[331466299,1720427815233,-1514.52,0.00034099,44]
[331466300,1720427815286,-500.0,0.00034099,34]
[331466301,1720427815334,-902.03,0.00034099,47]
[331466302,1720427815384,-885.43,0.00034099,31]
[331466303,1720427815431,-658.89,0.00034099,40]
[331466304,1720427815478,-500.0,0.00034099,35]
[331466305,1720427815527,-1514.52,0.00034099,45]
[331466306,1720427815577,-902.03,0.00034099,48]
[331466307,1720427815631,-885.43,0.00034099,32]
[331466308,1720427815683,-500.0,0.00034099,36]
[331466309,1720427815732,-1514.52,0.00034099,46]
[331466310,1720427815780,-658.89,0.00034099,41]
[331466311,1720427815831,-500.0,0.00034099,30]
[331466312,1720427815884,-885.43,0.00034099,33]
[331466313,1720427815936,-500.0,0.00034099,37]
[331466314,1720427815984,-658.89,0.00034099,42]
[331466315,1720427816031,-500.0,0.00034099,31]
[331466316,1720427816077,-885.43,0.00034099,34]
[331466317,1720427816128,-902.03,0.00034099,49]
[331466318,1720427816174,-800.08,0.00034099,30]
[331466319,1720427816219,-658.89,0.00034099,43]
[331466320,1720427816264,-500.0,0.00034099,38]
[331466321,1720427816311,-1514.52,0.00034099,47]
[331466322,1720427816359,-885.43,0.00034099,35]
[331466323,1720427816406,-902.03,0.00034099,50]
[331466324,1720427816448,-500.0,0.00034099,32]
[331466325,1720427816492,-658.89,0.00034099,44]
[331466326,1720427816537,-500.0,0.00034099,39]
[331466327,1720427816583,-1514.52,0.00034099,48]
[331466328,1720427816628,-885.43,0.00034099,36]
[331466329,1720427816671,-500.0,0.00034099,30]
[331466330,1720427816714,-902.03,0.00034099,51]
[331466331,1720427816758,-500.0,0.00034099,33]
[331466332,1720427816803,-800.08,0.00034099,31]
[331466333,1720427816916,-658.89,0.00034099,45]
[331466334,1720427816966,-1514.52,0.00034099,49]
[331466335,1720427817015,-885.43,0.00034099,37]
[331466336,1720427817064,-500.0,0.00034099,31]
[331466337,1720427817117,-902.03,0.00034099,52]
[331466338,1720427817167,-500.0,0.00034099,34]
[331466339,1720427817215,-658.89,0.00034099,46]
[331466340,1720427817262,-800.08,0.00034099,32]
[331466341,1720427817307,-500.0,0.00034099,40]
[331466342,1720427817352,-1514.52,0.00034099,50]
[331466343,1720427817398,-902.09277548,0.00034099,53]
[331466344,1720427817444,-500.0,0.00034099,32]
[331466345,1720427817489,-885.43,0.00034099,38]
[331466346,1720427817532,-500.0,0.00034099,35]
[331466347,1720427817575,-658.89,0.00034099,47]
[331466348,1720427817622,-800.08,0.00034099,33]
[331466349,1720427817664,-500.0,0.00034099,41]
[331466350,1720427817706,-1514.52,0.00034099,51]
[331466351,1720427817748,-885.43,0.00034099,39]
[331466352,1720427817789,-500.0,0.00034099,33]
[331466353,1720427817832,-500.0,0.00034099,36]
[331466354,1720427817876,-658.89,0.00034099,48]
[331466355,1720427817925,-800.08,0.00034099,34]
[331466356,1720427817972,-500.0,0.00034099,42]
[331466357,1720427818019,-1514.52,0.00034099,52]
[331466358,1720427818064,-885.43,0.00034099,40]
[331466359,1720427818114,-553.60781952,0.00034099,34]
[331466360,1720427818161,-658.89,0.00034099,49]
[331466361,1720427818207,-500.0,0.00034099,37]
[331466362,1720427818252,-800.08,0.00034099,35]
[331466363,1720427818298,-500.0,0.00034099,43]
[331466364,1720427818345,-1514.63468502,0.00034099,53]
[331466365,1720427818388,-885.43,0.00034099,41]
[331466366,1720427818429,-500.0,0.00034099,38]
[331466367,1720427818471,-800.08,0.00034099,36]
[331466368,1720427818514,-535.01825121,0.00034099,44]
[331466369,1720427818557,-885.43,0.00034099,42]
[331466370,1720427818601,-500.0,0.00034099,39]
[331466371,1720427818644,-658.89,0.00034099,50]
[331466372,1720427818685,-800.08,0.00034099,37]
[331466373,1720427818728,-885.43,0.00034099,43]
[331466374,1720427818770,-272.1537345,0.00034099,40]
[331466375,1720427818813,-658.89,0.00034099,51]
[331466376,1720427818855,-800.08,0.00034099,38]
[331466377,1720427818900,-885.43,0.00034099,44]
[331466378,1720427818941,-658.89,0.00034099,52]
[331466379,1720427818984,-800.08,0.00034099,39]
[331466380,1720427819032,-885.43,0.00034099,45]
[331466381,1720427819077,-800.08,0.00034099,40]
[331466382,1720427819130,-885.43,0.00034099,46]
[331466383,1720427819173,-658.93208963,0.00034099,53]
[331466384,1720427819216,-885.43,0.00034099,47]
[331466385,1720427819259,-800.08,0.00034099,41]
[331466386,1720427819303,-885.43,0.00034099,48]
[331466387,1720427819347,-800.08,0.00034099,42]
[331466388,1720427819390,-885.43,0.00034099,49]
[331466389,1720427819432,-500.0,0.00034099,30]
[331466390,1720427819475,-885.43,0.00034099,50]
[331466391,1720427819520,-800.08,0.00034099,43]
[331466392,1720427819564,-500.0,0.00034099,31]
[331466393,1720427819608,-500.0,0.00034099,30]
[331466394,1720427819653,-885.43,0.00034099,51]
[331466395,1720427819696,-800.08,0.00034099,44]
[331466396,1720427819740,-500.0,0.00034099,32]
[331466397,1720427819783,-885.43,0.00034099,52]
[331466398,1720427819826,-800.08,0.00034099,45]
[331466399,1720427819874,-885.52,0.00034099,53]
[331466400,1720427819924,-500.0,0.00034099,31]
[331466401,1720427819968,-500.0,0.00034099,33]
[331466402,1720427820012,-500.0,0.00034099,32]
[331466403,1720427820057,-500.0,0.00034099,30]
[331466404,1720427820104,-800.08,0.00034099,46]
[331466405,1720427820151,-500.0,0.00034099,34]
[331466406,1720427820198,-666.13,0.00034099,30]
[331466407,1720427820244,-500.0,0.00034099,33]
[331466408,1720427820292,-500.0,0.00034099,31]
[331466409,1720427820347,-800.08,0.00034099,47]
[331466411,1720427820394,-1647.33,0.00034099,30]
[331466412,1720427820441,-500.0,0.00034099,35]
[331466413,1720427820487,-666.13,0.00034099,31]
[331466414,1720427820532,-500.0,0.00034099,34]
[331466415,1720427820579,-500.0,0.00034099,32]
[331466416,1720427820629,-800.08,0.00034099,48]
[331466417,1720427820675,-1647.33,0.00034099,31]
[331466418,1720427820720,-500.0,0.00034099,36]
[331466419,1720427820764,-666.13,0.00034099,32]
[331466420,1720427820805,-247.49980531,0.00034099,35]
[331466421,1720427820850,-500.0,0.00034099,33]
[331466422,1720427820896,-800.08,0.00034099,49]
[331466423,1720427820941,-1647.33,0.00034099,32]
[331466424,1720427820987,-500.0,0.00034099,37]
[331466425,1720427821033,-666.13,0.00034099,33]
[331466426,1720427821080,-500.0,0.00034099,34]
[331466427,1720427821138,-1647.33,0.00034099,33]